lending/lending_fUSD_20240112
["ID","MTS","AMOUNT","RATE_DAILY","PERIOD"]
[311304971,1705055442294,-500.0,0.000295,2]
[311304973,1705055442303,-500.0,0.000295,2]
[311304975,1705055442312,-19105.65798421,0.000295,2]
[311304978,1705055442322,-3000.0,0.000295,2]
[311304979,1705055442333,-500.0,0.00029678,2]
[311304981,1705055442343,-290.1,0.00029685,2]
[311304983,1705055442353,-150.0,0.00029791,2]
[311304986,1705055442363,-500.0,0.00029791,2]
[311304988,1705055442372,-500.0,0.00029791,2]
[311304990,1705055442381,-500.0,0.00029791,2]
[311304991,1705055442391,-500.0,0.00029791,2]
[311304994,1705055442400,-500.0,0.00029791,2]
[311304996,1705055442409,-500.0,0.00029791,2]
[311304997,1705055442418,-500.0,0.00029791,2]
[311304999,1705055442428,-500.0,0.00029791,2]
[311305001,1705055442437,-500.0,0.00029791,2]
[311305003,1705055442446,-500.0,0.00029791,2]
[311305005,1705055442455,-500.0,0.00029791,2]
[311305007,1705055442465,-500.0,0.00029791,2]
[311305010,1705055442474,-500.0,0.00029791,2]
[311305011,1705055442483,-500.0,0.00029791,2]
[311305013,1705055442493,-500.0,0.00029791,2]
[311305016,1705055442503,-500.0,0.00029791,2]
[311305018,1705055442513,-500.0,0.00029791,2]
[311305019,1705055442526,-500.0,0.00029791,2]
[311305022,1705055442535,-500.0,0.00029791,2]
[311305023,1705055442545,-500.0,0.00029791,2]
[311305025,1705055442556,-500.0,0.00029791,2]
[311305027,1705055442566,-500.0,0.00029791,2]
[311305029,1705055442575,-500.0,0.00029791,2]
[311305031,1705055442584,-500.0,0.00029791,2]
[311305034,1705055442593,-500.0,0.00029791,2]
[311305036,1705055442604,-500.0,0.00029791,2]
[311305038,1705055442614,-500.0,0.00029791,2]
[311305040,1705055442623,-500.0,0.00029791,2]
[311305042,1705055442633,-500.0,0.00029791,2]
[311305044,1705055442643,-500.0,0.00029791,2]
[311305045,1705055442652,-500.0,0.00029791,2]
[311305048,1705055442662,-500.0,0.00029791,2]
[311305050,1705055442672,-500.0,0.00029791,2]
[311305052,1705055442682,-500.0,0.00029791,2]
[311305054,1705055442691,-500.0,0.00029791,2]
[311305056,1705055442700,-500.0,0.00029791,2]
[311305058,1705055442709,-500.0,0.00029791,2]
[311305060,1705055442718,-500.0,0.00029791,2]
[311305062,1705055442727,-500.0,0.00029791,2]
[311305064,1705055442736,-500.0,0.00029791,2]
[311305066,1705055442745,-500.0,0.00029791,2]
[311305067,1705055442754,-500.0,0.00029791,2]
[311305068,1705055442763,-500.0,0.00029791,2]
[311305071,1705055442773,-500.0,0.00029791,2]
[311305074,1705055442783,-500.0,0.00029791,2]
[311305078,1705055442791,-500.0,0.00029791,2]
[311305080,1705055442801,-500.0,0.00029791,2]
[311305083,1705055442810,-500.0,0.00029791,2]
[311305086,1705055442819,-500.0,0.00029791,2]
[311305089,1705055442829,-500.0,0.00029791,2]
[311305091,1705055442838,-211.0124993,0.00029797,2]
[311305094,1705055442847,-150.0,0.00029799,2]
[311305097,1705055442856,-500.0,0.000298,2]
[311305099,1705055442865,-500.0,0.000298,2]
[311305102,1705055442874,-500.0,0.000298,2]
[311305106,1705055442887,-500.0,0.000298,2]
[311305109,1705055442896,-500.0,0.000298,2]
[311305111,1705055442905,-450.0,0.000298,2]
[311305112,1705055442914,-500.0,0.000298,2]
[311305115,1705055442924,-500.0,0.000298,2]
[311305117,1705055442933,-500.0,0.000298,2]
[311305118,1705055442942,-500.0,0.000298,2]
[311305120,1705055442953,-500.0,0.000298,2]
[311305122,1705055442962,-500.0,0.000298,2]
[311305124,1705055442971,-500.0,0.000298,2]
[311305126,1705055442980,-500.0,0.000298,2]
[311305128,1705055442990,-500.0,0.000298,2]
[311305130,1705055442999,-500.0,0.000298,2]
[311305132,1705055443009,-500.0,0.000298,2]
[311305134,1705055443019,-500.0,0.000298,2]
[311305136,1705055443030,-500.0,0.000298,2]
[311305138,1705055443038,-500.0,0.000298,2]
[311305140,1705055443047,-500.0,0.000298,2]
[311305142,1705055443057,-500.0,0.000298,2]
[311305144,1705055443066,-500.0,0.000298,2]
[311305146,1705055443075,-500.0,0.000298,2]
[311305148,1705055443084,-500.0,0.000298,2]
[311305150,1705055443094,-500.0,0.000298,2]
[311305152,1705055443104,-500.0,0.000298,2]
[311305154,1705055443113,-500.0,0.000298,2]
[311305156,1705055443122,-500.0,0.000298,2]
[311305158,1705055443131,-500.0,0.000298,2]
[311305160,1705055443140,-500.0,0.000298,2]
[311305162,1705055443149,-500.0,0.000298,2]
[311305164,1705055443159,-500.0,0.000298,2]
[311305166,1705055443168,-500.0,0.000298,2]
[311305168,1705055443178,-500.0,0.000298,2]
[311305170,1705055443188,-500.0,0.000298,2]
[311305172,1705055443197,-500.0,0.000298,2]
[311305174,1705055443207,-500.0,0.000298,2]
[311305176,1705055443216,-500.0,0.000298,2]
[311305178,1705055443226,-500.0,0.000298,2]
[311305180,1705055443236,-500.0,0.000298,2]
[311305182,1705055443245,-500.0,0.000298,2]
[311305184,1705055443254,-500.0,0.000298,2]
[311305186,1705055443263,-500.0,0.000298,2]
[311305188,1705055443272,-500.0,0.000298,2]
[311305190,1705055443282,-500.0,0.000298,2]
[311305192,1705055443290,-500.0,0.000298,2]
[311305194,1705055443300,-500.0,0.000298,2]
[311305196,1705055443309,-500.0,0.000298,2]
[311305198,1705055443319,-500.0,0.000298,2]
[311305200,1705055443329,-500.0,0.000298,2]
[311305202,1705055443339,-500.0,0.000298,2]
[311305204,1705055443348,-500.0,0.000298,2]
[311305206,1705055443360,-500.0,0.000298,2]
[311305208,1705055443369,-500.0,0.000298,2]
[311305210,1705055443378,-500.0,0.000298,2]
[311305213,1705055443387,-500.0,0.000298,2]
[311305215,1705055443396,-500.0,0.000298,2]
[311305217,1705055443405,-500.0,0.000298,2]
[311305219,1705055443414,-500.0,0.000298,2]
[311305221,1705055443423,-500.0,0.000298,2]
[311305223,1705055443432,-500.0,0.000298,2]
[311305226,1705055443442,-500.0,0.000298,2]
[311305228,1705055443451,-500.0,0.000298,2]
[311305230,1705055443461,-500.0,0.000298,2]
[311305232,1705055443470,-500.0,0.000298,2]
[311305234,1705055443480,-500.0,0.000298,2]
[311305236,1705055443489,-500.0,0.000298,2]
[311305238,1705055443500,-500.0,0.000298,2]
[311305240,1705055443509,-500.0,0.000298,2]
[311305241,1705055443519,-500.0,0.000298,2]
[311305244,1705055443529,-500.0,0.000298,2]
[311305245,1705055443538,-500.0,0.000298,2]
[311305248,1705055443551,-500.0,0.000298,2]
[311305250,1705055443560,-500.0,0.000298,2]
[311305252,1705055443569,-500.0,0.000298,2]
[311305254,1705055443578,-500.0,0.000298,2]
[311305256,1705055443588,-500.0,0.000298,2]
[311305258,1705055443597,-500.0,0.000298,2]
[311305260,1705055443606,-500.0,0.000298,2]
[311305262,1705055443616,-500.0,0.000298,2]
[311305264,1705055443625,-500.0,0.000298,2]
[311305266,1705055443634,-500.0,0.000298,2]
[311305268,1705055443644,-500.0,0.000298,2]
[311305270,1705055443653,-500.0,0.000298,2]
[311305272,1705055443662,-500.0,0.000298,2]
[311305274,1705055443671,-500.0,0.000298,2]
[311305276,1705055443681,-500.0,0.000298,2]
[311305278,1705055443690,-500.0,0.000298,2]
[311305280,1705055443699,-500.0,0.000298,2]
[311305282,1705055443709,-500.0,0.000298,2]
[311305284,1705055443718,-500.0,0.000298,2]
[311305286,1705055443727,-500.0,0.000298,2]
[311305288,1705055443737,-500.0,0.000298,2]
[311305290,1705055443746,-500.0,0.000298,2]
[311305292,1705055443756,-500.0,0.000298,2]
[311305294,1705055443767,-500.0,0.000298,2]
[311305296,1705055443778,-500.0,0.000298,2]
[311305298,1705055443788,-500.0,0.000298,2]
[311305300,1705055443797,-500.0,0.000298,2]
[311305301,1705055443806,-500.0,0.000298,2]
[311305302,1705055443815,-500.0,0.000298,2]
[311305303,1705055443824,-500.0,0.000298,2]
[311305304,1705055443833,-500.0,0.000298,2]
[311305305,1705055443841,-500.0,0.000298,2]
[311305306,1705055443850,-250.0,0.000298,2]
[311305307,1705055443860,-500.0,0.000298,2]
[311305308,1705055443869,-500.0,0.000298,2]
[311305309,1705055443878,-500.0,0.000298,2]
[311305310,1705055443887,-500.0,0.000298,2]
[311305311,1705055443896,-500.0,0.000298,2]
[311305312,1705055443905,-500.0,0.000298,2]
[311305314,1705055443914,-500.0,0.000298,2]
[311305316,1705055443923,-500.0,0.000298,2]
[311305318,1705055443932,-500.0,0.000298,2]
[311305320,1705055443942,-500.0,0.000298,2]
[311305322,1705055443951,-500.0,0.000298,2]
[311305324,1705055443960,-500.0,0.000298,2]
[311305326,1705055443970,-500.0,0.000298,2]
[311305328,1705055443979,-500.0,0.000298,2]
[311305330,1705055443989,-195.7410408,0.000298,2]
[311305332,1705055443998,-373622.41969188,0.000298,2]
[311305334,1705055444008,-13577.62482855,0.000298,2]
[311305336,1705055444017,-558.15325618,0.00029827,2]
[311305339,1705055444029,-2717.03664086,0.0002996,2]
[311305341,1705055444038,-566.08021087,0.00029977,2]
[311305343,1705055444048,-767.5348565,0.00029977,2]
[311305345,1705055444057,-3757.82699948,0.00029977,2]
[311305347,1705055444066,-345.44939268,0.00029977,2]
[311305349,1705055444075,-1630.88008982,0.00029977,2]
[311305351,1705055444085,-335.15774498,0.00029977,2]
[311305353,1705055444095,-157.09012982,0.00029978,2]
[311305355,1705055444105,-694.71140313,0.00029978,2]
[311305357,1705055444114,-211.0124993,0.00029997,2]
[311305359,1705055444123,-100000.0,0.0003,2]
[311305361,1705055444133,-7999.99,0.0003,6]
[311305363,1705055444142,-205350.6957751,0.0003,4]
[311305366,1705055444167,-103102.11496854,0.0003,4]
[311305369,1705055444176,-1572.87627363,0.0003,2]
[311305371,1705055444186,-791.57141352,0.0003,2]
[311305373,1705055444194,-8850.80066817,0.0003,4]
[311305375,1705055444204,-2520.03283654,0.0003,4]
[311305377,1705055444213,-327.22655027,0.0003,4]
[311305379,1705055444222,-188.80511033,0.0003,30]
[311305381,1705055444232,-4495.33403735,0.0003,30]
[311305383,1705055444242,-9625.15929167,0.0003,2]
[311305385,1705055444252,-581.79448282,0.0003,2]
[311305387,1705055444261,-155.0,0.0003,2]
[311305389,1705055444272,-352.52665312,0.0003,2]
[311305391,1705055444282,-593.13324086,0.0003,3]
[311305393,1705055444292,-2673.21433858,0.0003,7]
[311305395,1705055444301,-312.37895848,0.0003,30]
[311305397,1705055444311,-303617.49742378,0.0003,4]
[311305399,1705055444320,-551.15358346,0.0003,2]
[311305401,1705055444330,-700.20590469,0.0003,2]
[311305403,1705055444339,-19545.93378188,0.0003,2]
[311305408,1705055444371,-500.0,0.00029791,2]
[311305410,1705055444382,-454.06621612,0.0003,2]
[311305412,1705055444391,-311.11295541,0.0003,2]
[311305414,1705055444400,-200.0,0.0003,2]
[311305416,1705055444411,-1709.48478972,0.0003,2]
[311305418,1705055444423,-1290.51521028,0.0003,2]
[311305420,1705055444432,-3000.0,0.0003,2]
[311305422,1705055444442,-3000.0,0.0003,2]
[311305424,1705055444451,-3000.0,0.0003,2]
[311305426,1705055444460,-3000.0,0.0003,2]
[311305428,1705055444469,-3000.0,0.0003,2]
[311305430,1705055444479,-1000.0,0.0003,2]
[311305432,1705055444489,-155.0,0.0003,2]
[311305434,1705055444498,-155.0,0.0003,2]
[311305436,1705055444508,-155.0,0.0003,2]
[311305438,1705055444517,-155.0,0.0003,2]
[311305440,1705055444529,-872.0,0.00030002,2]
[311305442,1705055444538,-200.0,0.00030082,2]
[311305444,1705055444548,-9906.95308166,0.000301,2]
[311305447,1705055444559,-279.90855197,0.00030137,5]
[311305449,1705055444571,-153.84,0.00030137,2]
[311305451,1705055444580,-160.0,0.00030313,2]
[311305452,1705055444590,-1079.79236373,0.0003038,2]
[311305455,1705055444600,-1070.50880827,0.0003038,2]
[311305456,1705055444610,-3000.0,0.000305,2]
[311305459,1705055444620,-290.1,0.00030664,2]
[311305461,1705055444629,-500.0,0.00030869,2]
[311305463,1705055444638,-153.96440762,0.000309,2]
[311305465,1705055444648,-500.0,0.00030953,2]
[311305467,1705055444659,-150.0,0.00030999,2]
[311305469,1705055444668,-72933.78677918,0.00031,2]
[311305472,1705055444692,-27066.21322082,0.00031,2]
[311305474,1705055444701,-700.0,0.00031,3]
[311305476,1705055444710,-4008.78060514,0.00031,2]
[311305478,1705055444720,-153.84,0.0003105,2]
[311305480,1705055444729,-205.0,0.00031212,15]
[311305483,1705055444739,-172.22,0.00031215,2]
[311305484,1705055444748,-1008.954,0.00031293,2]
[311305486,1705055444759,-619.117,0.00031343,2]
[311305489,1705055444768,-1138.0,0.00031343,2]
[311305491,1705055444779,-318.0,0.00031343,2]
[311305493,1705055444789,-879.0,0.00031343,2]
[311305495,1705055444799,-2270.0,0.00031343,2]
[311305497,1705055444809,-19678.0,0.00031343,2]
[311305499,1705055444819,-2455.15860715,0.00031343,2]
[311305526,1705055445645,-4411.55268022,0.00022898,2]
[311305527,1705055445657,-588.44731978,0.00022898,2]
[311305528,1705055445667,-500.0,0.00029791,2]
[311305529,1705055445676,-500.0,0.00029791,2]
[311305530,1705055445686,-500.0,0.00029791,2]
[311305531,1705055445696,-500.0,0.00029791,2]
[311305532,1705055445707,-500.0,0.00029791,2]
[311305534,1705055445717,-500.0,0.00029791,2]
[311305535,1705055445726,-500.0,0.00029791,2]
[311305536,1705055445735,-490.51005884,0.00029791,2]
[311305537,1705055446297,-9.48994116,0.00029791,2]
[311305538,1705055446307,-500.0,0.00029791,2]
[311305539,1705055446317,-500.0,0.00029791,2]
[311305540,1705055446328,-500.0,0.00029791,2]
[311305541,1705055446339,-500.0,0.00029791,2]
[311305542,1705055446349,-411.82075227,0.00031343,2]
[311305553,1705055446733,-338.64724169,0.00029791,2]
[311305554,1705055446744,-161.35275831,0.00029791,2]
[311305555,1705055446754,-34.02064058,0.00031343,2]
[311305556,1705055446764,-356.43010896,0.00031343,2]
[311305557,1705055447047,-500.0,0.00029791,2]
[311305558,1705055447057,-500.0,0.00029791,2]
[311305559,1705055447066,-500.0,0.00029791,2]
[311305560,1705055447075,-500.0,0.00029791,2]
[311305561,1705055447086,-588.56989104,0.00031343,2]
[311305562,1705055447095,-835.0,0.00031343,2]
[311305563,1705055447104,-1028.0,0.00031343,2]
[311305564,1705055447116,-319.04355379,0.000314,30]
[311305565,1705055447124,-150.0,0.00031424,2]
[311305566,1705055447134,-150.0,0.00031424,2]
[311305567,1705055447143,-500.0,0.000315,2]
[311305568,1705055447153,-5453.314843,0.000315,2]
[311305569,1705055447162,-274.86,0.00031507,2]
[311305570,1705055447172,-200.0,0.00031534,2]
[311305571,1705055447181,-150.0,0.00031574,2]
[311305572,1705055447192,-150.0,0.00031574,2]
[311305573,1705055447202,-290.1,0.00031642,2]
[311305574,1705055447213,-165.44,0.00031644,2]
[311305575,1705055447223,-1000.0,0.00031667,2]
[311305576,1705055447234,-2049.0,0.00031723,5]
[311305577,1705055447243,-300.62032364,0.00031763,4]
[311305578,1705055447321,-54660.6377338,0.000318,3]
[311305579,1705055447333,-552.16636131,0.000318,3]
[311305580,1705055447345,-270.17983787,0.000318,3]
[311305581,1705055447357,-851.18699985,0.000318,3]
[311305582,1705055447368,-2519.17149884,0.000318,3]
[311305583,1705055447997,-191.0,0.00028325,5]
[311305584,1705055448006,-500.0,0.00029791,2]
[311305585,1705055448014,-500.0,0.00029791,2]
[311305586,1705055448024,-291.24578311,0.00029791,2]
[311305587,1705055448037,-208.75421689,0.00029791,2]
[311305588,1705055448047,-500.0,0.00029791,2]
[311305589,1705055448056,-125.04488698,0.00029791,2]
[311305590,1705055448069,-374.95511302,0.00029791,2]
[311305591,1705055448078,-500.0,0.00029791,2]
[311305592,1705055448087,-500.0,0.00029791,2]
[311305593,1705055448096,-500.0,0.00029791,2]
[311305594,1705055448105,-500.0,0.00029791,2]
[311305595,1705055448115,-500.0,0.00029791,2]
[311305596,1705055448125,-168.32320396,0.000318,3]
[311305597,1705055448157,-2491.1792466,0.000318,3]
[311305598,1705055448168,-699.5899999,0.000318,3]
[311305599,1705055448179,-2165.46768528,0.000318,3]
[311305600,1705055448192,-5256.22509238,0.000318,3]
[311305601,1705055448206,-3430.59435517,0.000318,3]
[311305602,1705055448222,-5631.3,0.000318,3]
[311305603,1705055448246,-500.0,0.00029791,2]
[311305604,1705055448255,-2786.99273833,0.000318,3]
[311305605,1705055448268,-24225.50000026,0.000318,3]
[311305606,1705055448281,-414.80798352,0.000318,3]
[311305607,1705055448395,500.0,0.00022401,2]
[311305608,1705055448408,-500.0,0.00029791,2]
[311305609,1705055448418,-1698.03735021,0.000318,3]
[311305610,1705055449043,-500.0,0.00029791,2]
[311305611,1705055449053,-358.33591374,0.00029791,2]
[311305612,1705055449072,-141.66408626,0.00029791,2]
[311305613,1705055449082,-500.0,0.00029791,2]
[311305614,1705055449092,-500.0,0.00029791,2]
[311305615,1705055449101,-500.0,0.00029791,2]
[311305616,1705055449111,-500.0,0.00029791,2]
[311305617,1705055449120,-500.0,0.00029791,2]
[311305618,1705055449130,-500.0,0.00029791,2]
[311305619,1705055449140,-500.0,0.00029791,2]
[311305620,1705055449149,-500.0,0.00029791,2]
[311305621,1705055449158,-14861.43555539,0.000318,3]
[311305622,1705055449170,-3949.53493729,0.000318,3]
[311305623,1705055449182,-11939.94199914,0.000318,3]
[311305624,1705055449194,-38849.31864786,0.000318,3]
[311305625,1705055449206,-6585.13089568,0.000318,3]
[311305626,1705055449219,-618.00821424,0.000318,3]
[311305627,1705055449472,-500.0,0.00029791,2]
[311305628,1705055449507,-29791.89320099,0.000318,3]
[311305629,1705055449586,-619.84914807,0.000318,3]
[311305630,1705055451665,360.33822996,0.00018397,2]
[311305632,1705055464011,245000.0,0.00022401,2]
[311305633,1705055473178,122237.6223,0.00022401,2]
[311305634,1705055505663,704.74,0.00021796,2]
[311305637,1705055510437,1000.0,0.00022401,2]
[311305650,1705055646971,165.18,0.00021877,2]
[311305655,1705055697268,158.18730557,0.00022475,2]
[311305659,1705055733682,205.0,0.00021575,2]
[311305665,1705056111786,165.18,0.00017437,2]
[311305669,1705056226436,-545.0,0.00022573,2]
[311305670,1705056228189,-455.0,0.00022573,2]
[311305672,1705056250739,-545.0,0.00022574,2]
[311305673,1705056252065,-182.21,0.00022574,2]
[311305674,1705056252091,-362.79,0.00022574,2]
[311305676,1705056252653,-358.33,0.00022574,2]
[311305677,1705056252681,-186.67,0.00022574,2]
[311305678,1705056253591,-532.22,0.00022574,2]
[311305680,1705056288935,12.78,0.00021796,2]
[311305681,1705056288962,487.22,0.00021796,2]
[311305683,1705056438144,-2244.71903516,0.00022698,2]
[311305719,1705056633856,-454.31665307,0.00022699,2]
[311305721,1705056633869,-103.83660311,0.00022699,2]
[311305722,1705056633879,-158.18730557,0.00022783,2]
[311305723,1705056633889,-156.87826596,0.000228,2]
[311305724,1705056633915,-20.62532292,0.000228,2]
[311305725,1705056633925,-718.8,0.00022815,2]
[311305726,1705056633934,-209.43071508,0.00022882,2]
[311305727,1705056633947,-345.98262118,0.00022882,2]
[311305728,1705056633968,-955.53334241,0.00022882,2]
[311305729,1705056633992,-1676.19775232,0.00022882,2]
[311305730,1705056634001,-36.37487485,0.00022883,2]
[311305731,1705056634038,-314.19872509,0.00022883,2]
[311305732,1705056634052,-965.39069473,0.00022883,2]
[311305733,1705056634063,-4484.03570533,0.00022883,2]
[311305734,1705056634073,-150.0,0.00022885,2]
[311305735,1705056634082,-150.0,0.00022885,2]
[311305736,1705056634091,-534.82708842,0.00022886,2]
[311305737,1705056634111,-192.94291158,0.00022886,2]
[311305738,1705056634120,-542.85689283,0.00022892,2]
[311305739,1705056634152,-5257.14310717,0.00022892,2]
[311305740,1705056634161,-3946.13952391,0.000229,2]
[311305741,1705056634175,-1853.86047609,0.000229,2]
[311305742,1705056634184,-206.0,0.00023418,2]
[311305743,1705056634193,-735.59,0.00024634,2]
[311305744,1705056634203,-171.53,0.00024672,2]
[311305745,1705056634213,-1582.37478172,0.00025,2]
[311305746,1705056634222,-550.0,0.00025,3]
[311305747,1705056634232,-201.78427875,0.00025062,2]
[311305748,1705056634241,-200.0,0.00025063,2]
[311305749,1705056634251,-500.0,0.00025191,2]
[311305750,1705056634259,-150.0,0.0002521,2]
[311305751,1705056634268,-738.2,0.00025649,2]
[311305752,1705056634277,-150.0,0.00025758,2]
[311305753,1705056634286,-150.0,0.00026079,2]
[311305754,1705056634295,-212.85138282,0.0002611,2]
[311305755,1705056634304,-11059.85299388,0.00026208,2]
[311305756,1705056634328,-6184.63943289,0.00026208,2]
[311305758,1705056634340,-2344.85322979,0.00026208,2]
[311305760,1705056634351,-3722.27159976,0.00026208,2]
[311305762,1705056634363,-896.46176977,0.00026208,2]
[311305766,1705056638196,-2034.46108748,0.00022883,2]
[311305767,1705056638205,-196.58,0.00023,2]
[311305768,1705056638215,-155.38802252,0.00026208,2]
[311305769,1705056638227,-781.43011307,0.00026208,2]
[311305770,1705056638824,-487570.92747859,0.00026208,2]
[311305771,1705056638833,-835.0,0.0002621,2]
[311305772,1705056638843,-945.0,0.0002621,2]
[311305773,1705056638852,-1138.0,0.0002621,2]
[311305774,1705056638862,-879.0,0.0002621,2]
[311305775,1705056638871,-318.0,0.0002621,2]
[311305776,1705056638882,-250.0,0.0002621,2]
[311305777,1705056638891,-2270.0,0.0002621,2]
[311305778,1705056638901,-19678.0,0.0002621,2]
[311305779,1705056638910,-150.0,0.0002621,2]
[311305780,1705056638920,-150.425,0.0002621,2]
[311305781,1705056638930,-150.0,0.0002621,2]
[311305782,1705056638938,-2901.0,0.0002621,2]
[311305783,1705056638948,-150.0,0.0002621,2]
[311305784,1705056638957,-150.208,0.0002621,2]
[311305785,1705056638967,-1028.0,0.0002621,2]
[311305786,1705056638976,-150.0,0.0002621,2]
[311305787,1705056638986,-174.4,0.00026392,2]
[311305797,1705056639193,-2000.0,0.0002642,2]
[311305800,1705056639206,-750.0,0.00026441,2]
[311305802,1705056639215,-250.0,0.00026502,2]
[311305803,1705056639224,-151.88,0.00026508,2]
[311305805,1705056639234,-790.209,0.00026508,2]
[311305807,1705056639243,-2805.44,0.00026543,2]
[311305809,1705056639251,-166.07,0.00026683,2]
[311305811,1705056639261,-586.71,0.00026724,2]
[311305813,1705056639270,-158.5,0.00026737,2]
[311305815,1705056639282,-171.53,0.00026936,2]
[311305818,1705056639291,-175.34,0.00026969,2]
[311305820,1705056639301,-600.0,0.00027,3]
[311305822,1705056639310,-155.0,0.00027,2]
[311305824,1705056639320,-12283.43506918,0.00027,2]
[311305826,1705056639329,-200.0,0.0002731,2]
[311305828,1705056639338,-825.6,0.00027346,2]
[311305830,1705056639348,-250.0,0.00027397,2]
[311305832,1705056639357,-206.0,0.00027482,8]
[311305834,1705056639366,-500.0,0.00027566,2]
[311305836,1705056639376,-151.88,0.00027754,2]
[311305838,1705056639386,-165.67422842,0.00028,2]
[311305840,1705056639395,-559.78186451,0.000283,2]
[311305842,1705056639405,-194.43154397,0.00028323,2]
[311305844,1705056639414,-167.48816658,0.00028324,2]
[311305846,1705056639422,-192.90231929,0.00028618,2]
[311305848,1705056639432,-317.62207656,0.00028794,2]
[311305850,1705056639440,-151.88,0.00028999,2]
[311305852,1705056639449,-650.0,0.00029,3]
[311305854,1705056639459,-26211.9388,0.0002911,2]
[311305856,1705056639468,-6029.0,0.00029196,2]
[311305858,1705056639478,-171.53,0.000292,2]
[311305860,1705056639487,-945.0,0.0002921,2]
[311305862,1705056639496,-167.052,0.0002921,2]
[311305864,1705056639506,-879.0,0.0002921,2]
[311305866,1705056639515,-318.0,0.0002921,2]
[311305868,1705056639525,-150.0,0.0002921,2]
[311305870,1705056639535,-2270.0,0.0002921,2]
[311305872,1705056639544,-19678.0,0.0002921,2]
[311305874,1705056639553,-150.0,0.0002921,2]
[311305876,1705056639562,-150.0,0.0002921,2]
[311305878,1705056639571,-2901.0,0.0002921,2]
[311305880,1705056639580,-150.0,0.0002921,2]
[311305882,1705056639589,-1028.0,0.0002921,2]
[311305885,1705056639598,-550.0,0.00029388,2]
[311305886,1705056639608,-19105.65798421,0.000295,2]
[311305888,1705056639617,-500.0,0.00029557,2]
[311305891,1705056639627,-200.0,0.00029557,3]
[311305893,1705056639636,-200.0,0.00029557,2]
[311305894,1705056639646,-800.0,0.00029557,5]
[311305897,1705056639659,-2802.1811,0.00029589,2]
[311305899,1705056639668,-500.0,0.00029685,2]
[311305901,1705056639678,-2244.71260276,0.00029686,2]
[311305903,1705056639688,-20000.0,0.00029687,2]
[311305905,1705056639698,-150.0,0.00029688,2]
[311305907,1705056639707,-150.0,0.00029688,2]
[311305909,1705056639716,-500.0,0.00029689,2]
[311305911,1705056639726,-233927.76780939,0.00029689,2]
[311305914,1705056639739,-8910.58739061,0.00029689,2]
[311305916,1705056639749,-327407.1776,0.00029689,2]
[311305917,1705056639758,-174.4,0.00029691,2]
[311305919,1705056639767,-345.44939268,0.00029787,2]
[311305921,1705056639779,-694.71140313,0.00029787,2]
[311305924,1705056639788,-767.5348565,0.00029787,2]
[311305926,1705056639798,-3757.82699948,0.00029787,2]
[311305928,1705056639807,-1630.88008982,0.00029787,2]